Cogmind - Beta 11.1 @@@ ROGUE MODE // 2022.06.11 @ 16:05:11 Player: Decinym Result: Destroyed by G-67 Veteran with Field Laser Performance ------------- Evolutions (7) 3500 Regions Visited (31) 6200 Robots Destroyed (407) 2035 Value Destroyed (18908) 18908 Prototype IDs (267) 5340 Alien Tech Used (2) 400 Bonus (8690) 8690 TOTAL SCORE: 45073 Bonus ------- High Alert Combat Kills 2336 Follower Combat Kills 531 Aligned with FarCom 300 Met Data Miner 300 Used Data Conduit 3000 Met Imprinter 300 Destroyed Z-Imprinter 1000 Triggered Deep Caves Wall 500 Exposed GOLEM Chamber 500 Met Zhirov 300 Met Warlord at Base 500 MAIN.C Attacked Warlord 500 Warlord Defense Kills 1470 Scanned by Researcher 500 Pursued by Intercept 500 Friendly Fire -3847 Cogmind --------- Core Integrity 0/1300 Matter 300/300 Energy 144/150 System Corruption 28% Temperature Cool (54) Movement Hovering (22) Location -3/Quarantine Parts ------- > --- POWER (2) -------- Micro Antimatter Reactor > --- PROPULSION (6) --- Antigrav System Improved Antigrav System Improved Antigrav System Improved Antigrav System Cooled Linear Gravjet Cooled Linear Gravjet > --- UTILITY (9) ------ Advanced Power Amplifier Advanced Heat Sink Experimental Optical Array Makeshift Sensor Array Experimental Core Analyzer Centrium Medium Armor Plating Improved Energy Mantle System Mapper Experimental System Shield > --- WEAPON (4) ------- Compact HERF Cannon Gamma Bomb Array Core Stripper > --- INVENTORY (5) ---- Experimental Energy Well (600) YI-UF0's Bottomless Matter Pit (1258) Transdimensional Reconstructor Sigix Terminator Peak State ------------ > --- POWER ------------ Vortex Chain Reactor > --- PROPULSION ------- Enhanced Biometal Leg Enhanced Biometal Leg Experimental Myomer Leg Experimental Myomer Leg High-density Centrium Leg High-density Centrium Leg > --- UTILITY ---------- Experimental Heat Sink Huge Storage Unit Experimental Optical Array Makeshift Sensor Array Improved Target Analyzer Experimental Core Analyzer Improved Armor Integrity Analyzer Layered Heavy Armor Plating > --- WEAPON ----------- Helical Railgun Helical Railgun Heavy Autocannon > --- INVENTORY -------- Micro Antimatter Reactor Improved Quantum Reactor Experimental Biometal Medium Treads Advanced Power Amplifier Experimental Energy Well YI-UF0's Bottomless Matter Pit Precision Energy Filter Advanced Kinecellerator Improved Weapon Cycler Experimental Phase Shifter Experimental Shock Absorption System Improved Energy Mantle System Mapper Experimental System Shield System Purifier Transdimensional Reconstructor Vortex Cannon Vortex Cannon XL Autogun Array Heavy Shock Bomb Launcher Self-destruct Interrupter Self-destruct Interrupter [Rating: 188] Favorites ----------- Power Cooled Deuterium Engine Engine Cooled Deuterium Engine Power Core Neutrino Core Reactor Antimatter Reactor Propulsion Assembled Alloy Leg Treads Advanced Treads Leg Assembled Alloy Leg Wheel Armored Huge Wheel Hover Unit Improved Antigrav System Utility High-capacity Storage Unit Device Advanced Heat Sink Storage High-capacity Storage Unit Processor Experimental Armor Integrity Analyzer Hackware Hacking Suite Protection Improved Light Armor Plating Weapon Assembled Focal Cannon Energy Gun Heavy Particle Gun Energy Cannon Assembled Focal Cannon Ballistic Gun Enhanced Autogun Ballistic Cannon Heavy Autocannon Launcher Gamma Bomb Array Special Weapon RU-N14's Throwing Claymores Impact Weapon Core Stripper Slashing Weapon Ripper Special Melee Weapon Datajack Build | -11 -10 -10 -10 -9 -8 -8 -7 -7 -7 -7 -7 -6 -6 -6 -6 -6 -5 -5 -5 -5 -5 -5 -5 -4 -4 -4 -4 -4 -3 -3 -3 ------- Run | Scr Mat Min Exi Min Mat Sto Fac Low Low Zio Dee Pro Fac Low Low Dat Pro Fac Was Fac Upp Upp Zhi Pro Fac Upp Upp War Pro Res Qua Slots Evolved 14 | . . . . . 4 . 2 . . . . . 2 . . . . 2 . . . . . . 2 . . . . 2 . Power 1 | . . . . . . . . . . . . . . . . . . . . . . . . . 1 . . . . . . Propulsion 4 | . . . . . 1 . 1 . . . . . . . . . . . . . . . . . . . . . . 2 . Utility 7 | . . . . . 3 . 1 . . . . . 2 . . . . . . . . . . . 1 . . . . . . Weapon 2 | . . . . . . . . . . . . . . . . . . 2 . . . . . . . . . . . . . Parts Attached 405 | . 13 8 3 4 16 43 15 4 2 12 22 4 15 . 9 7 14 11 11 35 1 2 20 1 33 9 4 16 . 68 3 Power 32 | . . 1 . . 2 4 1 . . . 2 . 1 . . . . 1 3 2 1 . 1 . 3 1 . 1 . 8 . Engine 11 | . . 1 . . 2 3 1 . . . . . 1 . . . . 1 1 . 1 . . . . . . . . . . Core 2 | . . . . . . . . . . . 1 . . . . . . . . 1 . . . . . . . . . . . Reactor 19 | . . . . . . 1 . . . . 1 . . . . . . . 2 1 . . 1 . 3 1 . 1 . 8 . Propulsion 69 | . 4 4 . . 2 10 2 . 1 2 3 . . . 1 . 4 . 2 7 . 1 2 . 8 . . 2 . 14 . Treads 23 | . . 2 . . 2 9 2 . . 1 . . . . . . . . 2 2 . . . . 1 . . . . 2 . Leg 38 | . 4 2 . . . . . . 1 1 3 . . . 1 . 4 . . 4 . 1 2 . 7 . . 2 . 6 . Wheel 1 | . . . . . . . . . . . . . . . . . . . . 1 . . . . . . . . . . . Hover 7 | . . . . . . 1 . . . . . . . . . . . . . . . . . . . . . . . 6 . Flight . | . . . . . . . . . . . . . . . . . . . . . . . . . . . . . . . . Utility 138 | . 4 3 1 . 6 7 6 2 1 6 12 4 9 . 1 1 2 5 3 12 . 1 6 1 12 5 1 5 . 21 1 Device 48 | . 2 2 . . . 2 . . . 1 4 . 3 . . . 1 2 1 2 . . 1 1 6 . 1 4 . 14 1 Storage 15 | . 2 1 1 . . 1 . . . . 1 1 1 . . . . . . 3 . 1 . . 1 2 . . . . . Processor 18 | . . . . . 1 . . . . 4 . . . . . . 1 3 . . . . 2 . 3 1 . 1 . 2 . Hackware 7 | . . . . . 1 . 1 . . . . . 1 . . . . . . 2 . . . . . . . . . 2 . Protection 50 | . . . . . 4 4 5 2 1 1 7 3 4 . 1 1 . . 2 5 . . 3 . 2 2 . . . 3 . Artifact . | . . . . . . . . . . . . . . . . . . . . . . . . . . . . . . . . Weapon 166 | . 5 . 2 4 6 22 6 2 . 4 5 . 5 . 7 6 8 5 3 14 . . 11 . 10 3 3 8 . 25 2 Energy Gun 43 | . . . . 1 4 11 2 . . . 1 . 1 . . 1 . 2 . 3 . . . . 2 1 3 4 . 7 . Energy Cannon 42 | . 2 . 1 1 1 1 2 1 . . 1 . 3 . 3 2 4 . 1 5 . . 5 . 2 1 . 1 . 4 1 Ballistic Gun 34 | . 3 . . . . 5 . . . 2 . . . . 1 1 1 2 1 1 . . 3 . 1 1 . 2 . 10 . Ballistic Cannon 6 | . . . . . . 1 . . . . . . . . . . . 1 . 3 . . . . . . . 1 . . . Launcher 20 | . . . . 1 1 3 1 1 . . 1 . 1 . 2 1 1 . . 1 . . . . 4 . . . . 2 . Special Weapon 14 | . . . . . . 1 . . . 2 1 . . . 1 . 2 . 1 1 . . 2 . 1 . . . . 2 . Impact Weapon 3 | . . . . 1 . . 1 . . . . . . . . . . . . . . . . . . . . . . . 1 Slashing Weapon 3 | . . . . . . . . . . . 1 . . . . 1 . . . . . . 1 . . . . . . . . Piercing Weapon . | . . . . . . . . . . . . . . . . . . . . . . . . . . . . . . . . Special Melee Weapon 1 | . . . 1 . . . . . . . . . . . . . . . . . . . . . . . . . . . . Unidentified Prototypes 34 | . . 2 . . . 9 2 . . 5 6 . . . . . . . . . . . 2 . . . . 2 . 5 1 Corrupted Parts 9 | . . . . 2 . . . . . . . . . . . . 3 . . 2 . . . . 2 . . . . . . System Corruption 31 | . . . . 7 . . . . . . . . . . . . 7 . . 10 . . . . 7 . . . . . . Parts Lost 116 | . 1 1 . . . . . . 1 1 4 1 3 . 1 5 5 2 5 11 1 1 2 . 25 6 . . . 40 . Power 15 | . . . . . . . . . . . 1 . . . . . 1 . . 1 . . . . 2 2 . . . 8 . Propulsion 30 | . . . . . . . . . 1 . 3 . . . . . 2 . 4 2 . . 1 . 5 1 . . . 11 . Utility 34 | . . 1 . . . . . . . 1 . 1 1 . 1 3 . 2 . 4 1 1 . . 9 1 . . . 8 . Weapon 37 | . 1 . . . . . . . . . . . 2 . . 2 2 . 1 4 . . 1 . 9 2 . . . 13 . Highest Loss Streak 21 | . 1 1 . . . . . . 1 1 2 1 1 . 1 5 2 2 3 3 1 1 2 . 14 3 . . . 21 . To Critical Strikes 2 | . . . . . . . . . . . . . . . . . . . . . . . . . 1 . . . . 1 . Average Slot Usage (%) 91 | . 97 99 100 100 99 99 93 91 92 97 95 99 98 100 97 85 88 96 61 67 94 94 74 93 87 81 81 83 84 75 92 Engine 4 | . 14 14 14 14 9 8 7 7 7 7 3 . 1 6 6 6 2 4 . . 1 5 . . . . . . . . . Reactor 2 | . . . . . . . . . . . 3 7 4 . . . . . 3 4 3 . 4 5 6 7 5 4 5 5 4 Treads 9 | . . 4 28 28 27 26 30 23 22 21 6 . . . . . . . 3 6 . . . . . . . . . . . Leg 14 | . 28 23 . . . . . . . 7 22 30 26 26 25 26 25 23 10 5 23 23 23 23 20 18 15 18 21 17 . Device 8 | . 11 13 14 14 9 9 7 7 7 5 1 . 12 13 13 9 3 7 9 8 17 18 14 14 15 9 7 10 10 7 18 Storage 9 | . 14 14 14 14 9 9 7 7 7 7 9 19 13 13 13 13 13 11 5 7 11 11 11 11 9 10 5 5 5 3 . Processor 9 | . . . . . 3 . . . . 5 20 15 13 13 13 13 16 22 12 5 5 3 1 2 6 18 21 21 21 20 9 Hackware 1 | . . . . . 5 9 7 7 1 . . . . . . . . . . 1 5 4 . . . . . . . . 9 Protection 11 | . . . . . 17 17 16 22 28 26 11 10 12 13 10 12 13 3 3 3 . 1 11 11 7 2 7 5 5 2 4 Energy Gun 3 | . . . . . 16 13 7 7 7 . 1 . . . . . . 5 . 1 . . . . . 7 12 11 . 2 . Energy Cannon 8 | . 11 28 23 27 1 . 5 7 7 . 6 15 12 13 9 1 8 7 . 9 23 23 . 23 17 3 5 2 . 1 4 Ballistic Gun 2 | . 16 . . . . 3 . . . 10 . . . . 2 1 3 4 5 1 . . 2 . . 1 . . 10 6 1 Naked Turns . | . . . . . . . . . . . . . . . . . . . . . . . . . . . . . . . . Heaviest Build 201 | 12 34 41 54 54 68 71 91 91 95 95 115 115 141 123 123 117 120 127 120 192 115 161 173 178 201 140 144 191 187 188 68 Greatest Support 174 | 20 26 40 40 40 60 66 94 72 72 73 118 118 118 118 118 118 118 116 140 140 116 116 110 110 120 112 82 114 114 174 89 Greatest Overweight (x) 36 | . 1 2 1 1 1 1 . 1 1 1 3 . 1 1 1 . 36 1 11 4 . 1 1 1 2 1 1 1 1 5 . Average Overweight (x) . | . . . . 1 . . . 1 1 . . . . 1 . . . . . 1 . . . 1 1 1 1 1 1 . . Largest Inventory Capacity 25 | 8 15 15 20 20 20 20 20 20 20 20 20 20 25 25 25 25 25 25 25 25 20 25 25 25 25 25 25 25 25 25 5 Average Capacity 21 | 8 13 15 18 20 20 20 20 20 20 20 20 20 23 25 25 25 25 25 6 18 20 20 25 25 25 25 25 25 25 24 5 Most Carried 25 | 5 15 15 20 20 20 20 20 20 20 20 20 20 25 25 25 25 25 25 25 20 20 23 25 25 25 24 25 25 25 25 5 Average Carried 20 | 5 13 14 17 19 19 19 19 19 19 19 19 19 22 24 24 23 24 24 6 15 19 19 23 24 23 20 24 24 24 19 4 Final Capacity 25 | 8 15 15 20 20 20 20 20 20 20 20 20 20 25 25 25 25 25 25 5 20 20 25 25 25 25 25 25 25 25 5 5 Final Carried 25 | 4 15 15 20 20 20 20 20 20 20 20 20 20 25 25 25 25 24 25 4 20 19 23 24 25 20 24 25 25 25 5 5 Class Distribution -------------------- 50% | Mutant 21% | Scavenger-Mutant 13% | Scavenger-Gunner 7% | Golem Dominant Class ---------------- Mutant | -10/Materials Mutant | -10/Mines Scavenger-Mutant | -10/Exiles Scavenger-Mutant | -9/Mines Scavenger-Mutant | -8/Materials Scavenger-Mutant | -8/Storage Mutant | -7/Factory Mutant | -7/Lower Caves Mutant | -7/Lower Caves Mutant | -7/Zion Mutant | -7/Deep Caves Scavenger-Mutant | -6/Proximity Caves Scavenger-Mutant | -6/Factory Mutant | -6/Lower Caves Mutant | -6/Lower Caves Mutant | -6/Data Miner Mutant | -5/Proximity Caves Scavenger-Gunner | -5/Factory Scavenger-Gunner | -5/Waste Scavenger-Gunner | -5/Factory Golem | -5/Upper Caves Golem | -5/Upper Caves Mutant | -5/Zhirov Scavenger-Tank | -4/Proximity Caves Golem | -4/Factory Scavenger-Gunner | -4/Upper Caves Scavenger-Gunner | -4/Upper Caves Scavenger-Gunner | -4/Warlord Scavenger-Gunner | -3/Proximity Caves Scavenger-Mutant | -3/Research Scavenger-Sprinter | -3/Quarantine Resources | -11 -10 -10 -10 -9 -8 -8 -7 -7 -7 -7 -7 -6 -6 -6 -6 -6 -5 -5 -5 -5 -5 -5 -5 -4 -4 -4 -4 -4 -3 -3 -3 ----------- Run | Scr Mat Min Exi Min Mat Sto Fac Low Low Zio Dee Pro Fac Low Low Dat Pro Fac Was Fac Upp Upp Zhi Pro Fac Upp Upp War Pro Res Qua Matter Collected 12862 | 197 225 478 400 16 445 1283 172 80 89 72 395 40 136 163 378 153 445 191 368 1593 71 47 655 276 564 166 . 1128 924 1576 136 Remotely . | . . . . . . . . . . . . . . . . . . . . . . . . . . . . . . . . Salvage Created 20374 | . 417 411 . 19 602 1237 368 123 179 40 687 997 809 65 168 272 556 527 1201 3370 556 30 370 445 3010 727 . 555 434 2080 119 Parts 896 | . 32 18 . 7 28 65 22 11 4 1 18 29 50 1 5 6 20 27 17 137 23 13 13 8 156 27 . 10 21 119 8 Haulers Intercepted 14 | . 2 . . . . 5 . . . . . . 1 . . . . . . 5 . . . . 1 . . . . . . Recyclers Shooed 10 | . . 1 . . . . 2 . . . . . . . . . . 1 . 2 . . . . 4 . . . . . . Parts Field Recycled . | . . . . . . . . . . . . . . . . . . . . . . . . . . . . . . . . Retrieved Matter . | . . . . . . . . . . . . . . . . . . . . . . . . . . . . . . . . Parts Self-Destructed 133 | . . . . . . . . 10 4 1 . 27 . 1 . . 14 . . . 20 . . 7 . 27 2 . 20 . . Prevented 4 | . . . . . . . . . 3 . . . . 1 . . . . . . . . . . . . . . . . . Kills | -11 -10 -10 -10 -9 -8 -8 -7 -7 -7 -7 -7 -6 -6 -6 -6 -6 -5 -5 -5 -5 -5 -5 -5 -4 -4 -4 -4 -4 -3 -3 -3 ------- Run | Scr Mat Min Exi Min Mat Sto Fac Low Low Zio Dee Pro Fac Low Low Dat Pro Fac Was Fac Upp Upp Zhi Pro Fac Upp Upp War Pro Res Qua Combat Hostiles Destroyed 367 | . 10 2 . 4 12 17 8 5 3 . 49 15 12 1 10 4 15 6 5 58 9 2 . 8 50 9 . 11 9 33 . Guns 98 | . 10 . . . 7 14 4 . . . . . 1 . . 2 4 2 3 13 . . . . 6 4 . . 3 25 . Cannons 159 | . . 2 . . . . . 2 2 . 9 15 7 1 1 . 7 4 . 34 7 2 . 6 35 4 . 11 6 4 . AOE 100 | . . . . 4 4 2 4 3 . . 39 . 3 . 9 2 4 . 2 7 2 . . 2 9 . . . . 4 . Classes Destroyed 28 | . 4 1 . . 2 1 . 1 . . 4 3 3 1 1 . . 1 1 1 . . . . 1 . . 2 . . 1 Worker 12 | . . . . . 2 3 . . . . . . . . . . . 1 . 3 . . . . 1 . . . . 2 . Builder 13 | . . . . . . . . . . . . . 4 . . . . 1 . 2 . . . . 4 . . . . 2 . Tunneler 5 | . . . . . . . . . . . . . . . . . . 1 . 1 . . . . 1 . . . . 2 . Hauler 14 | . 2 . . . . 5 . . . . . . 1 . . . . . . 5 . . . . 1 . . . . . . Recycler 12 | . . 3 . . . 2 1 . . . . . . . . . . 1 . 1 . . . . 3 . . . . 1 . Minesweeper 1 | . . . . . . . . . . . . . . 1 . . . . . . . . . . . . . . . . . Operator 9 | . . . . . . 3 1 . . . . . 2 . . . . . . . . . . . 2 . . . . 1 . Watcher 7 | . 1 . . . . 1 1 . . . . . . . . . . . . 2 . . . . 1 . . . . 1 . Swarmer 76 | . 3 . . 4 . 6 5 4 . . . 4 . . . . . . . 15 . . . . 16 3 . . 4 12 . Grunt 113 | . 7 2 . . 10 7 2 . 3 . . 5 7 1 3 . 12 2 . 23 7 . . 5 5 . . 6 3 3 . Brawler 5 | . . . . . . . . . . . . 3 . . . . . . . . . . . . 1 . . 1 . . . Duelist 4 | . . . . . . . . . . . . 1 . . . . . . . . . . . 2 1 . . . . . . Protector 2 | . . . . . . . . . . . . . . . . . . . . . . . . . . . . 2 . . . Researcher 2 | . . . . . . . . . . . . . . . . . . . . . . . . . . . . . . . 2 Sentry 24 | . . . . . 2 4 1 . . . . 1 1 . . . . 1 . 7 1 . . 1 4 . . . . 1 . Demolisher 1 | . . . . . . . . . . . . . . . . . . . . . . . . . . . . 1 . . . Specialist 4 | . . . . . . . . . . . . . . . . . . . . . . . . . 2 . . . . 2 . Hunter 27 | . . . . . . . . . . . . . 2 . . . 3 1 . 6 . . . . 10 2 . . . 3 . Programmer 31 | . . . . . . . . . . . . . 2 . . . . 2 . 6 . . . . 10 3 . . 2 6 . Heavy 3 | . . . . . . . . . . . . . . . . . . . . 1 . . . . 1 . . . . 1 . Behemoth 6 | . . . . . . . . 1 . . . 1 . . . . . . . . 1 . . . . 1 . 1 . 1 . Compactor 5 | . . . . . . . . . . . . . . . . . . . 5 . . . . . . . . . . . . Enhanced Grunt 5 | . . . . . . . . . . . 1 . . . . 4 . . . . . . . . . . . . . . . Tracker 2 | . . . . . . . . . . . . . . . . . . . . . . . . . . . . . . 2 . Combat Programmer 2 | . . . . . . . . . . . . . . . . . . . . . . . . . . . . . . 2 . Z-Light 6 | . . . . . . . . . . . 6 . . . . . . . . . . . . . . . . . . . . Samaritan 1 | . . . . . . . . . . . . 1 . . . . . . . . . . . . . . . . . . . Master Thief 5 | . . . . . . . . . . . . . . . 3 . . . . . . 2 . . . . . . . . . Assembler 2 | . . . . . . . . . . . 2 . . . . . . . . . . . . . . . . . . . . Assembled 40 | . . . . . . . . . . . 40 . . . . . . . . . . . . . . . . . . . . Golem 2 | . . . . . . . . . . . 2 . . . . . . . . . . . . . . . . . . . . Thug 4 | . . . . . . . . . . . . . . . 4 . . . . . . . . . . . . . . . . Best Kill Streak 37 | . 6 2 . 4 5 7 6 4 3 . 37 4 7 1 4 4 4 6 3 16 5 2 2 3 11 3 . 8 4 12 2 Combat Bots Only 35 | . 5 2 . 4 5 4 4 4 3 . 35 4 2 1 4 4 4 3 3 13 5 2 . 3 10 3 . 8 4 9 . Max Kills in Single Turn 21 | . 1 1 . 4 2 2 4 3 1 . 21 1 2 1 2 1 2 3 1 4 2 1 1 2 4 1 . 1 1 4 1 Gunslinging 1 | . . . . . . . . . . . . . . . . . . . . 1 . . . . . . . . . . . Exploded 19 | . . . . 4 2 1 4 3 . . 19 . 1 . 2 1 1 . 1 4 2 . . 2 2 . . . . 3 . Melee . | . . . . . . . . . . . . . . . . . . . . . . . . . . . . . . . . Uniques/NPCs Destroyed 5 | . . 1 . . . 1 . . . . 1 . . . . . . . . . . . 2 . . . . . . . . YI-UF0 (-10/Mines) 01-MTF (-8/Storage) Z-Imprinter (-7/Deep Caves) Perun (-5/Zhirov) Svarog (-5/Zhirov) Combat | -11 -10 -10 -10 -9 -8 -8 -7 -7 -7 -7 -7 -6 -6 -6 -6 -6 -5 -5 -5 -5 -5 -5 -5 -4 -4 -4 -4 -4 -3 -3 -3 -------- Run | Scr Mat Min Exi Min Mat Sto Fac Low Low Zio Dee Pro Fac Low Low Dat Pro Fac Was Fac Upp Upp Zhi Pro Fac Upp Upp War Pro Res Qua Damage Taken 32129 | . 509 41 . 103 382 699 272 469 293 . 914 929 985 45 325 770 1142 300 240 4703 296 34 1290 649 5606 1349 . 451 881 8280 172 Core 3550 | . 126 15 . 21 15 34 21 34 17 . 142 38 331 . 56 74 27 22 2 371 41 5 70 33 551 115 . 79 . 1284 26 Absorbed by Shields 434 | . . . . . . . . . . . . . 164 12 72 20 . . . 119 . . . . 47 . . . . . . Redirected to Shielding 484 | . . . . . . . . . . . 107 . . . 21 121 10 . 122 . . . 103 . . . . . . . . Core Remaining (%) 58 | 100 . . . 35 . 91 . . . . . 64 . . . . 42 . . . . . . 45 . . . . 35 . . Volleys Fired 997 | . 49 12 . 1 30 125 14 12 10 2 43 42 37 6 18 9 33 13 17 157 11 5 25 13 111 19 6 30 21 121 5 Largest 4 | . 2 2 . 1 2 2 2 2 2 2 2 2 2 2 2 2 2 4 4 4 4 4 1 4 4 3 3 2 3 4 1 Hottest 443 | . 136 136 . 30 132 132 85 85 85 50 113 50 170 170 115 95 170 274 261 245 270 270 110 443 270 214 214 168 166 260 94 Shots Fired 1910 | . 96 24 . 1 55 222 26 24 19 3 48 82 59 12 21 14 51 46 25 270 39 19 25 42 255 54 12 33 64 264 5 Gun 884 | . 90 . . . 50 200 11 11 10 3 3 . 4 . 2 6 19 21 18 97 . . 19 . 19 37 7 3 42 212 . Cannon 898 | . 6 24 . . . 2 12 12 9 . 21 82 50 12 3 5 23 25 3 158 39 19 5 42 223 17 5 30 22 44 5 Launcher 68 | . . . . 1 5 3 3 1 . . 5 . 5 . 9 3 3 . . 12 . . . . 10 . . . . 8 . Special 60 | . . . . . . 17 . . . . 19 . . . 7 . 6 . 4 3 . . 1 . 3 . . . . . . Kinetic 642 | . 90 . . . . 62 . . . 3 . . . . 2 5 19 18 16 134 . . 19 . 11 5 . 30 64 164 . Thermal 1059 | . 6 24 . . 50 157 23 23 19 . 8 82 50 12 3 5 23 28 5 115 39 19 5 42 231 49 12 1 . 28 . Explosive 77 | . . . . 1 5 3 3 1 . . 24 . 5 . 16 3 9 . 4 3 . . . . . . . . . . . Electromagnetic 98 | . . . . . . . . . . . 16 . 4 . . 1 . . . 18 . . . . 10 . . . . 44 5 Entropic 30 | . . . . . . . . . . . . . . . . . . . . . . . . . . . . 2 . 28 . Robot Hit Streak 22 | . 10 5 . 4 6 13 6 9 7 6 9 22 19 6 16 12 11 10 16 19 5 4 20 21 9 17 . 11 6 13 3 Robot Miss Streak 20 | . 3 4 . . 2 4 4 2 1 . 3 3 2 1 2 1 2 2 2 6 2 2 2 1 6 20 . 3 6 4 . Penetration Max 1 | . . . . . . . . . . . . . . . . . . . . 1 . . . . . . . . . 1 . Secondary Targets 9 | . . . . . 1 3 . . . . . . . . . . . . . 1 . . . . . . . . . 4 . Max Gunslinging Chain 1 | . . . . . 1 1 . . . . . . . . . . . . . 1 . . . . . . . . . 1 . Autonomous 18 | . . . . . . . . . . . . . . . . . . . . . . . . . 7 11 . . . . . Shots Hit Robots 1219 | . 66 15 4 1 32 130 14 17 17 1 29 60 39 8 18 14 37 24 25 167 19 9 38 28 143 33 . 24 29 176 2 Core Hits 832 | . 32 9 . 4 28 52 14 10 3 1 97 23 31 2 25 16 34 15 16 85 12 2 27 15 114 15 . 13 12 123 2 Critical Kills 6 | . 1 . . . . . . . . . . . 1 . . . . 1 . . . . . . . 1 . . . 2 . Critical Parts Destroyed 5 | . . . . . . 1 . . . . . . . . . . . 1 . 1 . . . . . 2 . . . . . Critical Strikes 54 | . 1 . . . 1 2 . . 1 . 6 . 1 . . 1 1 4 1 10 . . . . . 6 . 4 5 10 . Burn 7 | . . . . . 1 1 . . 1 . . . . . . . . . . 1 . . . . . 3 . . . . . Meltdown 2 | . . . . . . . . . . . . . 1 . . . . . . . . . . . . 1 . . . . . Destroy 11 | . 1 . . . . 1 . . . . . . . . . . . 2 . 1 . . . . . 2 . . . 4 . Blast 19 | . . . . . . . . . . . . . . . . . . 2 . 8 . . . . . . . 4 5 . . Corrupt 7 | . . . . . . . . . . . 4 . . . . 1 . . . . . . . . . . . . . 2 . Sever 4 | . . . . . . . . . . . 2 . . . . . 1 . 1 . . . . . . . . . . . . Sunder 4 | . . . . . . . . . . . . . . . . . . . . . . . . . . . . . . 4 . Melee Attacks 24 | . . . 4 . . . . . . . 1 . . . . 1 . . . . . . 18 . . . . . . . . Impact . | . . . . . . . . . . . . . . . . . . . . . . . . . . . . . . . . Slashing 20 | . . . . . . . . . . . 1 . . . . 1 . . . . . . 18 . . . . . . . . Piercing . | . . . . . . . . . . . . . . . . . . . . . . . . . . . . . . . . Sneak Attacks 5 | . . . 4 . . . . . . . . . . . . 1 . . . . . . . . . . . . . . . Combat Hostiles . | . . . . . . . . . . . . . . . . . . . . . . . . . . . . . . . . Follow-up Attacks . | . . . . . . . . . . . . . . . . . . . . . . . . . . . . . . . . Damage Inflicted 62997 | . 598 338 . 193 892 2571 759 713 434 18 5706 2742 2043 242 1920 944 2543 1032 2301 11579 1128 405 2114 1500 9439 1239 . 2134 1367 5986 117 Guns 15452 | . 552 . . . 544 2226 155 179 182 18 80 . 142 . 48 126 265 242 1241 2169 . . 1703 . 766 662 . 166 630 3356 . Cannons 28318 | . 42 306 . . . . 139 226 252 . 486 2742 1272 242 62 93 533 676 117 6656 971 405 253 1265 6367 577 . 1968 737 1814 117 Explosions 17823 | . . . . 193 344 285 429 308 . . 4656 . 629 . 1596 707 1480 77 858 2662 157 . 85 235 2306 . . . . 816 . Melee 91 | . . . . . . . . . . . . . . . . 18 . . . . . . 73 . . . . . . . . Ramming 121 | . 4 32 . . 4 8 36 . . . . . . . . . . 37 . . . . . . . . . . . . . Kinetic 16828 | . 552 . . . . 824 . . . 18 . . . . 48 93 265 282 1197 5262 . . 1703 . 591 74 . 1968 1367 2584 . Thermal 27752 | . 42 306 . . 544 1454 294 405 434 . 352 2742 1454 242 62 93 533 713 161 4330 1128 405 338 1500 7756 1165 . 59 . 1240 . Explosive 11940 | . . . . 193 344 285 429 308 . . 4566 . 447 . 1596 707 1480 . 858 676 . . . . 51 . . . . . . Electromagnetic 3378 | . . . . . . . . . . . 304 . 142 . . 33 . . . 1219 . . . . 1041 . . . . 522 117 Impact . | . . . . . . . . . . . . . . . . . . . . . . . . . . . . . . . . Slashing 1231 | . . . . . . . . . . . 484 . . . 214 18 265 . 85 92 . . 73 . . . . . . . . Piercing . | . . . . . . . . . . . . . . . . . . . . . . . . . . . . . . . . Entropic 1747 | . . . . . . . . . . . . . . . . . . . . . . . . . . . . 107 . 1640 . Highest Corruption 28 | . . . . 7 1 1 2 2 2 2 . . 1 1 1 1 8 . . 18 18 18 26 26 20 21 21 21 3 28 28 Average Corruption 8 | . . . . 4 1 1 1 2 2 2 . . 1 1 1 1 1 . . 13 18 18 22 26 9 20 21 6 1 17 28 Corruption Purged . | . . . . . . . . . . . . . . . . . . . . . . . . . . . . . . . . Corruption Blocked 61 | . . . . . . . . . . . . . . . . . . . 15 12 . . . . . . . 4 . . 30 Effects 374 | . . . . . 1 18 . 13 12 . . . . 2 4 2 4 . . 23 17 30 42 46 33 34 35 4 7 38 9 Message Errors 86 | . . . . . . 9 . 1 2 . . . . . 1 . . . . 6 . 7 10 14 11 6 6 1 1 9 2 Matter Fused 94 | . . . . . 1 . . 5 3 . . . . . . . 2 . . 4 4 5 16 11 7 13 11 1 2 8 1 Heat Flow Errors 41 | . . . . . . . . 2 3 . . . . 1 1 . . . . 1 4 3 4 8 3 3 1 . 2 4 1 Energy Discharges 38 | . . . . . . 4 . 2 . . . . . . . . 2 . . 4 2 5 3 3 3 . 7 . . 3 . Parts Rejected 2 | . . . . . . . . . . . . . . . . . . . . 1 . . . . . . . . . . 1 Data Loss (minor) 45 | . . . . . . 4 . 2 1 . . . . . 1 1 . . . 3 1 4 6 4 5 5 5 1 . 1 1 Data Loss (major) 16 | . . . . . . . . . 1 . . . . . . 1 . . . 1 1 3 2 . . 1 2 . . 3 1 Misfires 14 | . . . . . . . . 1 . . . . . . 1 . . . . 1 1 1 . 3 2 1 1 . 1 1 . Alerts 14 | . . . . . . 1 . . 1 . . . . 1 . . . . . . 1 1 1 . 2 1 1 1 1 2 . Misdirections 4 | . . . . . . . . . . . . . . . . . . . . . . . . . . 1 . . . 1 2 Weapon Failures 20 | . . . . . . . . . 1 . . . . . . . . . . 2 3 1 . 3 . 3 1 . . 6 . Overload Shots 2 | . . . . . . . . . . . . . . . . . . . . 1 . . . . . . . 1 . . . Overflow Damage 2133 | . . . . 7 . . 12 13 . . 299 102 46 21 65 . . 74 39 552 5 48 . 53 482 80 . 28 169 38 . Projectiles 1461 | . . . . . . . . 13 . . 110 102 46 21 4 . . 34 . 414 5 48 . 53 334 80 . 28 169 . . Explosions 669 | . . . . 7 . . 12 . . . 189 . . . 61 . . 37 39 138 . . . . 148 . . . . 38 . Melee 3 | . . . . . . . . . . . . . . . . . . 3 . . . . . . . . . . . . . Knockbacks 24 | . . . . . . . 1 . . . . . . . . . . 2 . 12 . . . . . . . 6 3 . . Impact 1 | . . . . . . . 1 . . . . . . . . . . . . . . . . . . . . . . . . Kinetic 19 | . . . . . . . . . . . . . . . . . . 1 . 11 . . . . . . . 4 3 . . Secondary 4 | . . . . . . . . . . . . . . . . . . 1 . 1 . . . . . . . 2 . . . Self-Inflicted Damage 1030 | . . . . 18 . 22 63 28 . . . . 14 . . 57 19 97 . 92 56 . 41 86 321 . . . . 116 . Shots 32 | . . . . 1 . 1 1 1 . . . . 1 . . 3 2 1 . 5 1 . 1 1 10 . . . . 3 . Rammed 2 | . . . . . 1 . 1 . . . . . . . . . . . . . . . . . . . . . . . . Targets Rammed 26 | . 2 19 . . 1 1 1 . . . . . . . . . . 2 . . . . . . . . . . . . . Kicked 23 | . 2 19 . . . . . . . . . . . . . . . 2 . . . . . . . . . . . . . Crushed 1 | . . . . . . 1 . . . . . . . . . . . . . . . . . . . . . . . . . Highest Temperature 583 | . 45 135 . . 105 120 . 142 150 . 120 66 583 345 280 64 360 327 120 399 210 233 226 467 468 219 108 12 264 310 258 Average Temperature 98 | . 15 41 . . 30 24 . 76 58 . 38 15 156 177 119 29 128 90 56 116 82 108 69 191 111 64 36 8 108 86 156 Received Heat Transfer 4938 | . 291 42 . 12 225 324 18 48 162 . 213 198 236 21 178 . 372 18 . 795 127 . 135 171 563 54 . 67 142 435 91 Effects 22 | . . . . . . . . . . . . . 7 . . . . . . 8 . . . 3 3 . . . . 1 . Shutdowns 7 | . . . . . . . . . . . . . 1 . . . . . . 2 . . . 2 2 . . . . . . Energy Bleed 4 | . . . . . . . . . . . . . 2 . . . . . . 1 . . . . . . . . . 1 . Interference 4 | . . . . . . . . . . . . . . . . . . . . 3 . . . . 1 . . . . . . Matter Decay 3 | . . . . . . . . . . . . . 1 . . . . . . 2 . . . . . . . . . . . Short Circuit 1 | . . . . . . . . . . . . . . . . . . . . . . . . 1 . . . . . . . Damage (minor) 1 | . . . . . . . . . . . . . 1 . . . . . . . . . . . . . . . . . . Damage (core) 2 | . . . . . . . . . . . . . 2 . . . . . . . . . . . . . . . . . . Siege Activations . | . . . . . . . . . . . . . . . . . . . . . . . . . . . . . . . . Robots Corrupted 7 | . . . . . . . . . . . 1 . . . . . . . . 5 . . . . 1 . . . . . . Combat Hostiles 5 | . . . . . . . . . . . 1 . . . . . . . . 4 . . . . . . . . . . . Parts Fried 21 | . . . . . . . . . . . 2 . 1 . . . . . . 10 . . . . 6 . . . . 2 . Impact Corruptions 1 | . . . . . . . . . . . . . . . . . . 1 . . . . . . . . . . . . . Robots Melted 6 | . . . . . 1 2 . . 1 . . . 1 . . . . . . . . . . . . 1 . . . . . Combat Hostiles 5 | . . . . . 1 1 . . 1 . . . 1 . . . . . . . . . . . . 1 . . . . . Parts Melted 46 | . . 1 . . 1 11 . . 3 . . . 7 . . . . . . 4 . . . . 6 5 . 1 . 7 . Heat Transferred 20507 | . 74 555 . . 1258 3367 481 629 740 . 200 1525 983 296 74 185 592 346 111 2691 350 100 6 137 2924 1358 . 25 . 1500 . Parts Sabotaged 1 | . . . . . . . . . . . . . . . . . . . . . . . . . 1 . . . . . . Parts Stolen 6 | . . . . . . . . 3 . . . . . . 1 . . . . . . 2 . . . . . . . . . Parts Stripped . | . . . . . . . . . . . . . . . . . . . . . . . . . . . . . . . . Power Chain Reactions 12 | . . . . . . . . . . . 1 . . . . . . . . 1 1 . 1 1 5 . . . . 2 . Missiles Intercepted . | . . . . . . . . . . . . . . . . . . . . . . . . . . . . . . . . Alert | -11 -10 -10 -10 -9 -8 -8 -7 -7 -7 -7 -7 -6 -6 -6 -6 -6 -5 -5 -5 -5 -5 -5 -5 -4 -4 -4 -4 -4 -3 -3 -3 ------- Run | Scr Mat Min Exi Min Mat Sto Fac Low Low Zio Dee Pro Fac Low Low Dat Pro Fac Was Fac Upp Upp Zhi Pro Fac Upp Upp War Pro Res Qua Peak Influence 1604 | . 305 60 . 117 282 463 464 . . . . . 310 . . . . 271 70 1604 . . . . 1465 . . . . 433 390 Initial 225 | . . 47 . . 45 114 21 . . . . . . . . . . 91 68 32 . . . . . . . . . . 225 Average 316 | . 171 34 . 116 151 142 151 . . . . . 176 . . . . 204 56 737 . . . . 640 . . . . 230 319 Maximum Alert Level 5 | . 1 . . . 1 2 2 . . . . . 1 . . . . 1 . 5 . . . . 4 . . . . 2 1 Low Security (%) 55 | 100 57 100 . 100 63 80 56 . . . . . 55 . . . . 44 100 27 . . . . 30 . . . . 40 . Level 1 23 | . 42 . . . 36 14 34 . . . . . 44 . . . . 55 . 16 . . . . 7 . . . . 38 100 Level 2 7 | . . . . . . 5 8 . . . . . . . . . . . . 10 . . . . 17 . . . . 21 . Level 3 4 | . . . . . . . . . . . . . . . . . . . . 10 . . . . 21 . . . . . . Level 4 8 | . . . . . . . . . . . . . . . . . . . . 31 . . . . 23 . . . . . . Level 5 . | . . . . . . . . . . . . . . . . . . . . 2 . . . . . . . . . . . High Security . | . . . . . . . . . . . . . . . . . . . . . . . . . . . . . . . . Max Security . | . . . . . . . . . . . . . . . . . . . . . . . . . . . . . . . . Squads Dispatched 57 | . 2 . . . 2 3 4 . . . . . 4 . . . . . . 18 . . . . 12 . . . . 11 1 Investigation 4 | . . . . . 1 1 . . . . . . . . . . . . . 2 . . . . . . . . . . . Extermination 13 | . . . . . . . 1 . . . . . 2 . . . . . . 3 . . . . 4 . . . . 3 . Reinforcement 23 | . 2 . . . 1 2 2 . . . . . 2 . . . . . . 7 . . . . 4 . . . . 2 1 Assault 5 | . . . . . . . . . . . . . . . . . . . . 3 . . . . 2 . . . . . . Garrison 9 | . . . . . . . 1 . . . . . . . . . . . . 3 . . . . 2 . . . . 3 . Intercept 3 | . . . . . . . . . . . . . . . . . . . . . . . . . . . . . . 3 . Searches Triggered . | . . . . . . . . . . . . . . . . . . . . . . . . . . . . . . . . Construction Impeded 5 | . . . . . . . . . . . . . 1 . . . . . . 2 . . . . 2 . . . . . . Haulers Reinforced 3 | . . . . . . . . . . . . . . . . . . . . 3 . . . . . . . . . . . Active Scanning Responses . | . . . . . . . . . . . . . . . . . . . . . . . . . . . . . . . . Cargo Convoy Interrupts 2 | . . . . . . . . . . . . . . . . . . . . 1 . . . . 1 . . . . . . Stealth | -11 -10 -10 -10 -9 -8 -8 -7 -7 -7 -7 -7 -6 -6 -6 -6 -6 -5 -5 -5 -5 -5 -5 -5 -4 -4 -4 -4 -4 -3 -3 -3 --------- Run | Scr Mat Min Exi Min Mat Sto Fac Low Low Zio Dee Pro Fac Low Low Dat Pro Fac Was Fac Upp Upp Zhi Pro Fac Upp Upp War Pro Res Qua Distress Signals 21 | . 4 . . . 3 2 . . . . . . 1 . . . . . . 4 . . . . 1 . . 1 . 5 . Communications Jammed . | . . . . . . . . . . . . . . . . . . . . . . . . . . . . . . . . Distress Signals . | . . . . . . . . . . . . . . . . . . . . . . . . . . . . . . . . Times Spotted 508 | . 20 2 . 6 20 26 19 10 3 . 48 16 16 1 11 4 17 6 6 72 8 3 9 8 73 10 . 29 8 44 13 Peak Tracking Total 37 | . 4 1 . 2 8 5 5 4 3 . 37 4 5 1 4 4 5 2 3 7 4 3 3 5 15 4 . 9 3 7 7 Tactical Retreats 37 | . . . . . 1 1 . . . . . 1 2 . . . 2 . . 14 . . 8 . 3 . . 1 . 2 2 Traps | -11 -10 -10 -10 -9 -8 -8 -7 -7 -7 -7 -7 -6 -6 -6 -6 -6 -5 -5 -5 -5 -5 -5 -5 -4 -4 -4 -4 -4 -3 -3 -3 ------- Run | Scr Mat Min Exi Min Mat Sto Fac Low Low Zio Dee Pro Fac Low Low Dat Pro Fac Was Fac Upp Upp Zhi Pro Fac Upp Upp War Pro Res Qua Traps Triggered 7 | . . . . . 2 . 1 . . . . . . . . . . 1 . 3 . . . . . . . . . . . Indirectly . | . . . . . . . . . . . . . . . . . . . . . . . . . . . . . . . . Trap Hack Attempts . | . . . . . . . . . . . . . . . . . . . . . . . . . . . . . . . . Triggered . | . . . . . . . . . . . . . . . . . . . . . . . . . . . . . . . . Disarmed . | . . . . . . . . . . . . . . . . . . . . . . . . . . . . . . . . Reprogrammed . | . . . . . . . . . . . . . . . . . . . . . . . . . . . . . . . . Reused . | . . . . . . . . . . . . . . . . . . . . . . . . . . . . . . . . Traps Extracted . | . . . . . . . . . . . . . . . . . . . . . . . . . . . . . . . . Installed . | . . . . . . . . . . . . . . . . . . . . . . . . . . . . . . . . Triggered 35 | . . . . . . 1 . . 2 . . . . 1 . . . . . 1 . . . . . 2 . 28 . . . Most Traps Carried 2 | . . . . . . . . . 2 2 . . . . . . . . . . . . . . . . . . . . . Machines | -11 -10 -10 -10 -9 -8 -8 -7 -7 -7 -7 -7 -6 -6 -6 -6 -6 -5 -5 -5 -5 -5 -5 -5 -4 -4 -4 -4 -4 -3 -3 -3 ---------- Run | Scr Mat Min Exi Min Mat Sto Fac Low Low Zio Dee Pro Fac Low Low Dat Pro Fac Was Fac Upp Upp Zhi Pro Fac Upp Upp War Pro Res Qua Machines Disabled 50 | . . . . . . 9 . . . . 3 . 4 . . . . 4 . 11 . . 2 . 14 . . . . 1 2 Max in Single Turn 5 | . . . . . . 2 . . . . 1 . 3 . . . . 2 . 5 . . 2 . 4 . . . . 1 1 Garrison Access 1 | . . . . . . . . . . . . . . . . . . . . . . . . . 1 . . . . . . Machines Sabotaged . | . . . . . . . . . . . . . . . . . . . . . . . . . . . . . . . . Garrisons Compromised 1 | . . . . . . . . . . . . . . . . . . . . 1 . . . . . . . . . . . Overloaded Fab Kills . | . . . . . . . . . . . . . . . . . . . . . . . . . . . . . . . . Hacking | -11 -10 -10 -10 -9 -8 -8 -7 -7 -7 -7 -7 -6 -6 -6 -6 -6 -5 -5 -5 -5 -5 -5 -5 -4 -4 -4 -4 -4 -3 -3 -3 --------- Run | Scr Mat Min Exi Min Mat Sto Fac Low Low Zio Dee Pro Fac Low Low Dat Pro Fac Was Fac Upp Upp Zhi Pro Fac Upp Upp War Pro Res Qua Machines Accessed 64 | . 2 . 2 1 5 9 2 . . 1 . . 2 . . 4 . 3 . 8 . . 4 . 4 . 2 6 . 7 2 Terminals 36 | . 2 . . . 4 8 1 . . . . . 2 . . . . 1 . 6 . . . . 4 . 1 . . 5 2 Fabricators 4 | . . . . . . . . . . . . . . . . . . 2 . 2 . . . . . . . . . . . Repair Stations . | . . . . . . . . . . . . . . . . . . . . . . . . . . . . . . . . Recycling Units 3 | . . . . . . 1 . . . . . . . . . . . . . . . . . . . . . . . 2 . Scanalyzers 1 | . . . . . 1 . . . . . . . . . . . . . . . . . . . . . . . . . . Garrison Access 1 | . . . . . . . 1 . . . . . . . . . . . . . . . . . . . . . . . . Total Hacks 172 | . 2 . 2 1 19 20 4 . . 6 . . 6 . . 30 . 8 . 15 . . 13 . 7 . 2 17 . 16 4 Successful 116 | . 2 . 2 1 12 14 1 . . 6 . . 2 . . 30 . 3 . 5 . . 13 . 1 . 2 17 . 4 1 Failed 56 | . . . . . 7 6 3 . . . . . 4 . . . . 5 . 10 . . . . 6 . . . . 12 3 Catastrophic 12 | . . . . . . . . . . . . . 1 . . . . 1 . 1 . . . . 3 . . . . 5 1 Database Lockouts . | . . . . . . . . . . . . . . . . . . . . . . . . . . . . . . . . Manual 60 | . 2 . 1 . 8 8 . . . 1 . . 5 . . . . 7 . 8 . . . . 3 . . 3 . 13 1 Terminals 77 | . 2 . . . 11 19 2 . . . . . 6 . . . . 2 . 10 . . . . 7 . 1 . . 13 4 Fabricators 11 | . . . . . . . . . . . . . . . . . . 6 . 5 . . . . . . . . . . . Repair Stations . | . . . . . . . . . . . . . . . . . . . . . . . . . . . . . . . . Recycling Units 4 | . . . . . . 1 . . . . . . . . . . . . . . . . . . . . . . . 3 . Scanalyzers 8 | . . . . . 8 . . . . . . . . . . . . . . . . . . . . . . . . . . Garrison Access 2 | . . . . . . . 2 . . . . . . . . . . . . . . . . . . . . . . . . Terminal Hacks 95 | . 2 . 2 1 4 11 1 . . 6 . . 1 . . 30 . . . 2 . . 13 . 1 . 2 17 . 1 1 Record 23 | . . . 1 . . 1 . . . . . . . . . 9 . . . . . . 5 . . . 1 6 . . . Part Schematic 24 | . 1 . . . . 2 . . . 6 . . . . . 11 . . . . . . 4 . . . . . . . . Robot Schematic 8 | . . . . . . 1 . . . . . . . . . 7 . . . . . . . . . . . . . . . Robot Analysis 2 | . . . . . . 2 . . . . . . . . . . . . . . . . . . . . . . . . . Prototype ID Bank 20 | . . . . . 3 . . . . . . . . . . 3 . . . . . . 4 . . . . 10 . . . Open Door 7 | . . . . 1 . 3 . . . . . . . . . . . . . . . . . . . . 1 1 . . 1 Open DSF 2 | . . . . . . . . . . . . . . . . . . . . 1 . . . . . . . . . 1 . Branch Access Points 6 | . 1 . . . 1 . 1 . . . . . 1 . . . . . . 1 . . . . 1 . . . . . . Unreport Threat 2 | . . . . . . 2 . . . . . . . . . . . . . . . . . . . . . . . . . EX-Prototype ID Bank 1 | . . . 1 . . . . . . . . . . . . . . . . . . . . . . . . . . . . Fabricator Hacks 2 | . . . . . . . . . . . . . . . . . . 1 . 1 . . . . . . . . . . . Load Schematic 1 | . . . . . . . . . . . . . . . . . . . . 1 . . . . . . . . . . . Build 1 | . . . . . . . . . . . . . . . . . . 1 . . . . . . . . . . . . . Repair Station Hacks . | . . . . . . . . . . . . . . . . . . . . . . . . . . . . . . . . Recycling Unit Hacks 1 | . . . . . . . . . . . . . . . . . . . . . . . . . . . . . . 1 . Retrieve Matter 1 | . . . . . . . . . . . . . . . . . . . . . . . . . . . . . . 1 . Scanalyzer 7 | . . . . . 7 . . . . . . . . . . . . . . . . . . . . . . . . . . Insert Component 4 | . . . . . 4 . . . . . . . . . . . . . . . . . . . . . . . . . . Analyze 3 | . . . . . 3 . . . . . . . . . . . . . . . . . . . . . . . . . . Garrison Access Hacks . | . . . . . . . . . . . . . . . . . . . . . . . . . . . . . . . . Unauthorized Hacks 11 | . . . . . 1 3 . . . . . . 1 . . . . 2 . 2 . . . . . . . . . 2 . Terminals 9 | . . . . . 1 2 . . . . . . 1 . . . . 1 . 2 . . . . . . . . . 2 . Assimilate 1 | . . . . . . 1 . . . . . . . . . . . . . . . . . . . . . . . . . Botnet 8 | . . . . . 1 1 . . . . . . 1 . . . . 1 . 2 . . . . . . . . . 2 . Fabricators 1 | . . . . . . . . . . . . . . . . . . 1 . . . . . . . . . . . . . Liberate 1 | . . . . . . . . . . . . . . . . . . 1 . . . . . . . . . . . . . Repair Stations . | . . . . . . . . . . . . . . . . . . . . . . . . . . . . . . . . Recycling Units 1 | . . . . . . 1 . . . . . . . . . . . . . . . . . . . . . . . . . Tunnel 1 | . . . . . . 1 . . . . . . . . . . . . . . . . . . . . . . . . . Scanalyzers . | . . . . . . . . . . . . . . . . . . . . . . . . . . . . . . . . Garrison Access . | . . . . . . . . . . . . . . . . . . . . . . . . . . . . . . . . Data Cores Recovered 3 | . . . . . . 1 . . . . . . 1 . . . . . . . . . . . . . . . . 1 . Used 2 | . . . . . . . . . . . . . 1 . . . . . . . . . . . . . . . . 1 . Hacking Detections 36 | . 1 . . . 4 8 2 . . . . . 2 . . . . 3 . 5 . . . . 4 . . . . 6 1 Full Trace Events 1 | . . . . . . . . . . . . . . . . . . . . 1 . . . . . . . . . . . Feedback Events . | . . . . . . . . . . . . . . . . . . . . . . . . . . . . . . . . Feedback Blocked . | . . . . . . . . . . . . . . . . . . . . . . . . . . . . . . . . Robot Schematics Acquired 14 | . . . . . . 1 . . . 4 . . . . . 7 . . . . . . . . . . . . . . 2 Robots Built . | . . . . . . . . . . . . . . . . . . . . . . . . . . . . . . . . Authchips . | . . . . . . . . . . . . . . . . . . . . . . . . . . . . . . . . Time . | . . . . . . . . . . . . . . . . . . . . . . . . . . . . . . . . Total Robot Build Rating . | . . . . . . . . . . . . . . . . . . . . . . . . . . . . . . . . Part Schematics Acquired 48 | . 1 . . . 3 1 . . . 20 . . . . . 11 . . . . . . 4 . . . . . . . 8 Parts Built 2 | . . . . . . . . . . . . . . . . . . 2 . . . . . . . . . . . . . Authchips . | . . . . . . . . . . . . . . . . . . . . . . . . . . . . . . . . Time 106 | . . . . . . . . . . . . . . . . . . 106 . . . . . . . . . . . . . Total Part Build Rating 12 | . . . . . . . . . . . . . . . . . . 12 . . . . . . . . . . . . . Parts Repaired . | . . . . . . . . . . . . . . . . . . . . . . . . . . . . . . . . Time . | . . . . . . . . . . . . . . . . . . . . . . . . . . . . . . . . Parts Recycled . | . . . . . . . . . . . . . . . . . . . . . . . . . . . . . . . . Recycled Matter . | . . . . . . . . . . . . . . . . . . . . . . . . . . . . . . . . Retrieved Matter . | . . . . . . . . . . . . . . . . . . . . . . . . . . . . . . . . Retrieved Components . | . . . . . . . . . . . . . . . . . . . . . . . . . . . . . . . . Parts Scanalyzed 3 | . . . . . 3 . . . . . . . . . . . . . . . . . . . . . . . . . . Part Schematics Acquired 3 | . . . . . 3 . . . . . . . . . . . . . . . . . . . . . . . . . . Parts Damaged . | . . . . . . . . . . . . . . . . . . . . . . . . . . . . . . . . Bothacking | -11 -10 -10 -10 -9 -8 -8 -7 -7 -7 -7 -7 -6 -6 -6 -6 -6 -5 -5 -5 -5 -5 -5 -5 -4 -4 -4 -4 -4 -3 -3 -3 ------------ Run | Scr Mat Min Exi Min Mat Sto Fac Low Low Zio Dee Pro Fac Low Low Dat Pro Fac Was Fac Upp Upp Zhi Pro Fac Upp Upp War Pro Res Qua Used RIF Installer . | . . . . . . . . . . . . . . . . . . . . . . . . . . . . . . . . Robots Hacked 5 | . . . 4 . . . . . . . . . . . . . . . . . . . . . 1 . . . . . . Non-combat 3 | . . . 3 . . . . . . . . . . . . . . . . . . . . . . . . . . . . Combat 1 | . . . 1 . . . . . . . . . . . . . . . . . . . . . . . . . . . . Robot Hacks Applied 4 | . . . 4 . . . . . . . . . . . . . . . . . . . . . . . . . . . . parse_system 4 | . . . 4 . . . . . . . . . . . . . . . . . . . . . . . . . . . . Manual 1 | . . . . . . . . . . . . . . . . . . . . . . . . . 1 . . . . . . Relay Couplers Released 4 | . . . . . . . . . . . . . 3 . . . . . . . . . . . 1 . . . . . . Machine Destruction 1 | . . . . . . . . . . . . . . . . . . . . . . . . . 1 . . . . . . Programmers 3 | . . . . . . . . . . . . . 3 . . . . . . . . . . . . . . . . . . Fabnet Peak Effective % . | . . . . . . . . . . . . . . . . . . . . . . . . . . . . . . . . Robots Rewired . | . . . . . . . . . . . . . . . . . . . . . . . . . . . . . . . . Allies Hacked . | . . . . . . . . . . . . . . . . . . . . . . . . . . . . . . . . Hacks Repelled . | . . . . . . . . . . . . . . . . . . . . . . . . . . . . . . . . Allies | -11 -10 -10 -10 -9 -8 -8 -7 -7 -7 -7 -7 -6 -6 -6 -6 -6 -5 -5 -5 -5 -5 -5 -5 -4 -4 -4 -4 -4 -3 -3 -3 -------- Run | Scr Mat Min Exi Min Mat Sto Fac Low Low Zio Dee Pro Fac Low Low Dat Pro Fac Was Fac Upp Upp Zhi Pro Fac Upp Upp War Pro Res Qua Total Allies 8 | . . . . . . 2 3 . . 2 . . . . . . . . . . . . . . 1 . . . . . . Largest Group 3 | . . . . . . 2 3 . . 2 2 . . . . . . . . . . . . . 1 . . . . . . Highest-Rated Group 192 | . . . . . . 110 93 . . 192 192 . . . . . . . . . . . . . 116 . . . . . . Highest-Rated Ally 116 | . . . . . . 100 31 . . 96 96 . . . . . . . . . . . . . 116 . . . . . . Total Orders 2 | . . . . . . . . . . . . . . . . . . . . . . . . . . . . . . 2 . EXPLORE 2 | . . . . . . . . . . . . . . . . . . . . . . . . . . . . . . 2 . Ally Attacks 101 | . . . . . . 1 44 . . . 42 . . . . . . . . . . . . . 14 . . . . . . Total Damage 2427 | . . . . . . 36 631 . . . 868 . . . . . . . . . . . . . 892 . . . . . . Kills 22 | . . . . . . 1 7 . . . 7 . . . . . . . . . . . . . 7 . . . . . . Allies Corrupted . | . . . . . . . . . . . . . . . . . . . . . . . . . . . . . . . . Allies Melted 4 | . . . . . . . . . . . . . . . . . . . . . . . . . . . . 4 . . . Intel | -11 -10 -10 -10 -9 -8 -8 -7 -7 -7 -7 -7 -6 -6 -6 -6 -6 -5 -5 -5 -5 -5 -5 -5 -4 -4 -4 -4 -4 -3 -3 -3 ------- Run | Scr Mat Min Exi Min Mat Sto Fac Low Low Zio Dee Pro Fac Low Low Dat Pro Fac Was Fac Upp Upp Zhi Pro Fac Upp Upp War Pro Res Qua Robot Analysis Total 130 | . . . . . . 2 . . . . . . . . . 128 . . . . . . . . . . . . . . . Derelict Logs Recovered 10 | . . . . . . . . 1 . . . 1 . 1 1 . . . . . 1 1 . . . 1 3 . . . . Drone Launches 11 | . . . . . . . . . . . . . . . . . . . . . . . . . . . . . . 11 . Drone Recoveries 1 | . . . . . . . . . . . . . . . . . . . . . . . . . . . . . . 1 . Exploration | -11 -10 -10 -10 -9 -8 -8 -7 -7 -7 -7 -7 -6 -6 -6 -6 -6 -5 -5 -5 -5 -5 -5 -5 -4 -4 -4 -4 -4 -3 -3 -3 ------------- Run | Scr Mat Min Exi Min Mat Sto Fac Low Low Zio Dee Pro Fac Low Low Dat Pro Fac Was Fac Upp Upp Zhi Pro Fac Upp Upp War Pro Res Qua Turns Passed 33424 | 1 606 795 1422 268 682 2504 563 1354 890 4192 3499 932 772 663 888 261 678 509 217 1929 312 686 843 1004 1628 619 735 1707 817 1326 122 Spaces Moved 15526 | 1 236 377 663 107 312 943 331 564 369 1770 1965 444 387 356 515 172 233 206 109 796 199 422 372 310 599 295 381 831 409 578 274 Core 3 | . . . . . . . . . . . . . . . . . 1 . 2 . . . . . . . . . . . . Treads 5804 | . . 72 663 107 312 943 331 564 369 1770 232 . . . . . . . 42 387 . . . . 1 . . . . 11 . Legs 9122 | 1 236 305 . . . . . . . . 1733 444 387 356 515 172 232 206 65 216 199 422 372 310 598 295 381 831 409 437 . Wheels 193 | . . . . . . . . . . . . . . . . . . . . 193 . . . . . . . . . . . Hover 404 | . . . . . . . . . . . . . . . . . . . . . . . . . . . . . . 130 274 Flight . | . . . . . . . . . . . . . . . . . . . . . . . . . . . . . . . . Fastest Speed 22 | 120 120 160 160 240 160 145 148 230 230 155 116 127 127 179 127 127 127 120 120 120 135 135 130 180 175 182 186 180 180 22 22 Average Speed 179 | 120 180 184 212 240 178 217 148 230 230 234 147 127 157 179 161 127 166 158 151 176 135 143 161 180 177 183 186 182 180 152 31 Slowest Speed 1850 | 120 190 260 240 240 240 240 148 230 232 235 330 127 179 179 183 127 1850 182 600 330 135 185 185 180 295 186 186 186 180 470 33 Overloaded Moves 70 | . . . . . . . . . . . . . . . . . . . . . . . . . . . . . . 43 27 Propulsion Burnouts . | . . . . . . . . . . . . . . . . . . . . . . . . . . . . . . . . Robots Hopped . | . . . . . . . . . . . . . . . . . . . . . . . . . . . . . . . . Cave-ins Triggered . | . . . . . . . . . . . . . . . . . . . . . . . . . . . . . . . . Exploration Rate (%) 49 | 2 46 54 78 24 34 93 15 70 36 86 77 54 9 53 74 77 45 8 76 26 43 51 67 52 25 49 53 81 70 23 30 Regions Visited 31 Branch Regions 22 Pre-discovered Areas 35 | . . . 1 . . 1 . . . 2 . . . 1 . 25 . . . . . . 3 . . 1 1 . . . . Known Exits Taken 9 | . 1 . . . 1 . 1 . . . . 1 1 . . . 1 . . 1 1 . . . 1 . . . . . . Unknown Exits Taken 20 | 1 . 1 1 1 . 1 . 1 1 1 1 . . 1 1 1 . . . . . 1 1 1 . 1 1 1 1 1 . Scrap Searched 22 | . . 1 . . . . . 1 3 2 . . . 2 3 . 1 . . . 1 2 . . . 3 . . 3 . . Spaces Dug 120 | . . . . . . 8 . 15 . . 5 . 11 . . . . 31 . 7 3 . . 2 16 1 7 . . 14 . Terrain Destroyed 1084 | . . . . 9 19 50 46 18 . . 101 20 68 . 137 17 86 33 29 107 35 9 . 19 156 21 7 1 47 49 . Melee . | . . . . . . . . . . . . . . . . . . . . . . . . . . . . . . . . Projectile 322 | . . . . . . . 1 3 . . 3 20 19 . 2 . 7 7 . 44 20 9 . 12 74 21 7 1 47 25 . AOE 759 | . . . . 9 19 50 45 15 . . 98 . 49 . 135 17 79 26 29 63 15 . . 7 82 . . . . 21 . Terrain Rammed . | . . . . . . . . . . . . . . . . . . . . . . . . . . . . . . . . Walls Destroyed . | . . . . . . . . . . . . . . . . . . . . . . . . . . . . . . . . Machines Disabled . | . . . . . . . . . . . . . . . . . . . . . . . . . . . . . . . . Actions | -11 -10 -10 -10 -9 -8 -8 -7 -7 -7 -7 -7 -6 -6 -6 -6 -6 -5 -5 -5 -5 -5 -5 -5 -4 -4 -4 -4 -4 -3 -3 -3 --------- Run | Scr Mat Min Exi Min Mat Sto Fac Low Low Zio Dee Pro Fac Low Low Dat Pro Fac Was Fac Upp Upp Zhi Pro Fac Upp Upp War Pro Res Qua Total 19557 | 2 338 438 680 118 383 1188 377 601 391 1816 2512 730 491 372 552 200 486 358 153 1060 216 496 572 729 978 330 399 993 444 850 304 Wait 2031 | . 6 4 . 1 8 25 1 8 5 5 448 235 34 4 2 2 204 110 . 27 4 52 104 398 211 1 . 76 9 33 14 Move 15496 | . 235 376 662 106 311 942 330 563 368 1769 1964 443 386 355 514 171 232 206 108 795 198 421 371 309 598 294 380 830 408 577 274 Hop . | . . . . . . . . . . . . . . . . . . . . . . . . . . . . . . . . Pick Up 209 | . 17 7 6 3 5 9 4 7 3 11 8 2 9 3 3 5 3 6 5 22 . 6 13 1 6 3 4 13 3 19 3 Fast Attach 237 | . 9 5 . . 9 26 9 2 1 7 16 4 9 . 3 2 3 10 10 24 1 . 8 1 16 8 2 14 . 36 2 Attach 98 | . 1 2 1 . 2 2 3 . 1 3 6 . 4 . 1 5 4 1 1 8 . 1 10 . 14 1 . . . 27 . Detach 26 | . 1 . . . . 2 1 . . . 1 . 2 . 1 1 . . . 1 . 2 1 . 4 2 . 1 . 6 . Swap 73 | . 3 2 2 4 5 15 3 2 . 3 . . 2 . 5 . 7 . . 3 . 1 3 . 3 . 2 2 . 5 1 Drop 332 | 2 15 11 5 3 12 41 11 7 3 16 25 4 8 3 5 4 . 10 12 23 2 8 15 7 15 1 5 27 3 24 5 Fire 997 | . 49 12 . 1 30 125 14 12 10 2 43 42 37 6 18 9 33 13 17 157 11 5 25 13 111 19 6 30 21 121 5 Melee 24 | . . . 4 . . . . . . . 1 . . . . 1 . . . . . . 18 . . . . . . . . Ram . | . . . . . . . . . . . . . . . . . . . . . . . . . . . . . . . . Kick 23 | . 2 19 . . . . . . . . . . . . . . . 2 . . . . . . . . . . . . . Crush 3 | . . . . . 1 1 1 . . . . . . . . . . . . . . . . . . . . . . . . Escape Stasis 4 | . . . . . . . . . . . . . . . . . . . . . . . 4 . . . . . . . . Rewire 2 | . . . . . . . . . . . . . . 1 . . . . . . . . . . . 1 . . . . . Trap . | . . . . . . . . . . . . . . . . . . . . . . . . . . . . . . . . Miscellaneous 2 | . . . . . . . . . . . . . . . . . . . . . . . . . . . . . . 2 . Route ------- -11/Scrapyard -10/Materials (discovered 2 exits: [*Mat] / *Min) -10/Mines (discovered 2 exits: [*Mat] / *Exi) -10/Exiles (discovered 2 exits: *Min x2) -9/Mines -8/Materials -8/Storage -7/Factory (discovered 2 exits: *Low x2) -7/Lower Caves -7/Lower Caves -7/Zion (discovered 2 exits: [*Dee] / [*Pro]) -7/Deep Caves -6/Proximity Caves -6/Factory (discovered 3 exits: Fac / *Low x2) -6/Lower Caves -6/Lower Caves (discovered 2 exits: *Fac / *Dat) -6/Data Miner -5/Proximity Caves -5/Factory -5/Waste -5/Factory (discovered 3 exits: *Fac / *Upp x2) -5/Upper Caves -5/Upper Caves -5/Zhirov -4/Proximity Caves -4/Factory (discovered 5 exits: *Res / *Upp x2 / Ext x2) -4/Upper Caves -4/Upper Caves -4/Warlord -3/Proximity Caves -3/Research (discovered 3 exits: Res / *Qua x2) -3/Quarantine History --------- Turn | Location | Event 2 | -11/Scrapyard | Discovered new exit (range 0) 2 | -11/Scrapyard | Entered Materials 252 | -10/Materials | Core integrity fell below 50% 274 | -10/Materials | Discovered new exit (range 16) 397 | -10/Materials | Identified exit to Mines 608 | -10/Materials | Entered Mines 610 | -10/Mines | YI-UF0 nonchalantly dropped a Grenade Launcher on the ground 618 | -10/Mines | Build established: Mutant 676 | -10/Mines | Destroyed YI-UF0 694 | -10/Mines | Discovered new exit (range 13) 713 | -10/Mines | Found Prototype Storage 718 | -10/Mines | Identified YI-UF0's Bottomless Matter Pit 832 | -10/Mines | Found a damaged Exp. Sensor Array with a note attached 837 | -10/Mines | Found Prototype Device 837 | -10/Mines | Identified Exp. Sensor Array 1155 | -10/Mines | Found Prototype Launcher 1196 | -10/Mines | Deemed a non-threat by the Exiles lab entrance 1198 | -10/Mines | Discovered new exit (range 5) 1403 | -10/Mines | Entered Exiles 1427 | -10/Exiles | Discovered new exit (range 15) 1441 | -10/Exiles | Build established: Scavenger-Mutant 1443 | -10/Exiles | Met 8R-AWN 1474 | -10/Exiles | Met EX-HEX 1575 | -10/Exiles | Met EX-DEC 1606 | -10/Exiles | Visited The Gauntlet 1687 | -10/Exiles | Learned location of Zion (-7) 1879 | -10/Exiles | Met EX-BIN 1915 | -10/Exiles | Aligned with FarCom system 1918 | -10/Exiles | Given EX-Vault access code 1978 | -10/Exiles | Opened EX-Vault 2002 | -10/Exiles | Found XL Autogun Array 2015 | -10/Exiles | Found Potential Leg 2019 | -10/Exiles | Found Potential Leg 2025 | -10/Exiles | Found PSU Rigger 2076 | -10/Exiles | Warned to stay clear of 0b10 Research branches 2798 | -10/Exiles | Discovered new exit (range 12) 2825 | -10/Exiles | Stole three prototypes: Potential Leg, PSU Rigger, XL Autogun Array 2825 | -10/Exiles | Entered Mines 3010 | -9/Mines | Discovered new exit (range 9) 3021 | -9/Mines | Met a Derelict who couldn't figure out how to use a Trap Extractor 3093 | -9/Mines | Entered Materials 3093 | -8/Materials | Evolved 4 slots: Propulsion x1, Utility x3 3110 | -8/Materials | Identified YI-UF0's Doublenader 3520 | -8/Materials | Identified exit to Storage 3775 | -8/Materials | Entered Storage 5316 | -8/Storage | Discovered new exit (range 15) 5361 | -8/Storage | Build established: Mutant 5476 | -8/Storage | Met 01-MTF 6015 | -8/Storage | Destroyed 01-MTF 6052 | -8/Storage | Found 01-MTF's Shockpuncher 6056 | -8/Storage | Found Prototype Device 6056 | -8/Storage | Identified 01-MTF's Autohacker 6279 | -8/Storage | Entered Factory 6279 | -7/Factory | Evolved 2 slots: Propulsion x1, Utility x1 6281 | -7/Factory | FarCom data flow suspended 6573 | -7/Factory | Allied Derelicts emerged from ambush trap array 6589 | -7/Factory | Garrison activated, responded to threat 6685 | -7/Factory | Identified exit to Lower Caves 6842 | -7/Factory | Entered Lower Caves 6842 | -7/Lower Caves | Spotted X3-TSI(f) 6842 | -7/Lower Caves | Spotted 6D-X9A(f) 6843 | -7/Lower Caves | Encountered a Master Thief 6843 | -7/Lower Caves | Encountered a Master Thief 6845 | -7/Lower Caves | Spotted 7B-Y98(f) 6846 | -7/Lower Caves | Encountered a Master Thief 6847 | -7/Lower Caves | Adv. Treads stolen by Master Thief 6847 | -7/Lower Caves | Centrium Light Armor Plating stolen by Master Thief 6849 | -7/Lower Caves | Mni. Fusion Reactor stolen by Master Thief 7228 | -7/Lower Caves | Learned Factory terminal intel 7339 | -7/Lower Caves | Spotted B-75 Beast 7438 | -7/Lower Caves | Destroyed B-75 Beast 8150 | -7/Lower Caves | Discovered new exit (range 5) 8196 | -7/Lower Caves | Entered another Lower Caves area 9018 | -7/Lower Caves | Discovered new exit (range 11) 9086 | -7/Lower Caves | Entered Zion 9145 | -7/Zion | Given A8's code to call for help 9261 | -7/Zion | System corruption cleaned by Quarantine Array 9425 | -7/Zion | Discovered new exit (range 7) 9763 | -7/Zion | Learned location of Warlord (-4) 10045 | -7/Zion | Learned Factory emergency access door positions 10482 | -7/Zion | Given the Hacking Drone Bay 10741 | -7/Zion | Remotely autohacked Sealed Blast Doors 10746 | -7/Zion | Remotely autohacked Sealed Blast Doors 10746 | -7/Zion | Remotely autohacked Sealed Blast Doors 10746 | -7/Zion | Remotely autohacked Sealed Blast Doors 10767 | -7/Zion | Discovered new exit (range 5) 10772 | -7/Zion | Saw the warning signs outside the Deep Caves entrance 11737 | -7/Zion | Found Prototype Special Weapon 11740 | -7/Zion | Found Prototype Special Weapon 11743 | -7/Zion | Found Prototype Special Weapon 12220 | -7/Zion | Found Prototype Processor 12220 | -7/Zion | Identified Exp. Target Analyzer 12224 | -7/Zion | Found Prototype Processor 12224 | -7/Zion | Identified Exp. Melee Analysis Suite 12228 | -7/Zion | Found Prototype Processor 12228 | -7/Zion | Identified Spectral Analyzer 12234 | -7/Zion | Found Prototype Processor 12234 | -7/Zion | Identified Exp. Armor Integrity Analyzer 12244 | -7/Zion | Found Prototype Hackware 12248 | -7/Zion | Found Exp. Targeting Computer 12252 | -7/Zion | Identified RU-N14's Throwing Claymores (x3) 12490 | -7/Zion | Found Prototype Device 12842 | -7/Zion | Found RU-N14's Throwing Claymores 13244 | -7/Zion | Enhanced Grunt warped into view, answering call for help 13246 | -7/Zion | Enhanced Grunt warped into view, answering call for help 13278 | -7/Zion | Entered Deep Caves 13278 | -7/Deep Caves | Accompanied by 2 allies 13729 | -7/Deep Caves | Attacked by Z-Imprinter 13735 | -7/Deep Caves | Destroyed Z-Imprinter 14034 | -7/Deep Caves | Z-Facility disabled 14264 | -7/Deep Caves | Found Prototype Protection 14264 | -7/Deep Caves | Identified Zio. Weapon Casing 14328 | -7/Deep Caves | Found Zio. Weapon Casing 14780 | -7/Deep Caves | Spotted as-30600 14827 | -7/Deep Caves | Destroyed as-30600 15131 | -7/Deep Caves | Triggered Deep Caves wall 15131 | -7/Deep Caves | Spotted AS-05936 15131 | -7/Deep Caves | Spotted AS-88934 15132 | -7/Deep Caves | Destroyed AS-05936 15144 | -7/Deep Caves | Destroyed AS-88934 15171 | -7/Deep Caves | Destroyed 35 combat bots 15189 | -7/Deep Caves | Found Prototype Device 15189 | -7/Deep Caves | Identified Exp. Thermal Shield 15286 | -7/Deep Caves | Exposed GOLEM chamber 15289 | -7/Deep Caves | Found GOLEM Unit 15907 | -7/Deep Caves | Build established: Golem 16239 | -7/Deep Caves | Build established: Mutant 16621 | -7/Deep Caves | Found GOLEM Unit 16638 | -7/Deep Caves | Found GOLEM Unit 16770 | -7/Deep Caves | Discovered new exit (range 6) 16777 | -7/Deep Caves | Entered Proximity Caves 16778 | -6/Proximity Caves | Identified exit to Factory 16795 | -6/Proximity Caves | Spotted B-75 Beast 16816 | -6/Proximity Caves | Destroyed B-75 Beast 17083 | -6/Proximity Caves | Attracted the attention of an 0b10 checkpoint 17204 | -6/Proximity Caves | Received a Behemoth hack from an annoying Tinkerer 17264 | -6/Proximity Caves | Build established: Scavenger-Mutant 17652 | -6/Proximity Caves | Learned location of 1 exit from Factory 17709 | -6/Proximity Caves | Entered Factory 17709 | -6/Factory | Evolved 2 slots: Utility x2 17710 | -6/Factory | Identified exit to Factory 17712 | -6/Factory | Loaded intel: 26 terminal locations 18055 | -6/Factory | Identified exit to Lower Caves 18481 | -6/Factory | Entered Lower Caves 18612 | -6/Lower Caves | Build established: Mutant 18856 | -6/Lower Caves | Encountered a Warlord checkpoint 19128 | -6/Lower Caves | Discovered new exit (range 10) 19144 | -6/Lower Caves | Entered another Lower Caves area 19147 | -6/Lower Caves | Encountered a Warlord checkpoint 19243 | -6/Lower Caves | Discovered exit to Factory (range 13) 19288 | -6/Lower Caves | Learned Factory emergency access door positions 19328 | -6/Lower Caves | Ambushed by wild Derelicts 19440 | -6/Lower Caves | Spotted B-75 Beast 19748 | -6/Lower Caves | Spotted BS-MFX(f) 19749 | -6/Lower Caves | Encountered a Master Thief 19749 | -6/Lower Caves | Spotted EQ-D6N(f) 19749 | -6/Lower Caves | Spotted SA-81U(f) 19750 | -6/Lower Caves | Encountered a Master Thief 19750 | -6/Lower Caves | Encountered a Master Thief 19752 | -6/Lower Caves | Destroyed EQ-D6N(f) 19752 | -6/Lower Caves | Spotted CL-J3L(f) 19752 | -6/Lower Caves | Potential Leg stolen by Master Thief 19753 | -6/Lower Caves | Encountered a Master Thief 19762 | -6/Lower Caves | Destroyed CL-J3L(f) 19764 | -6/Lower Caves | Destroyed SA-81U(f) 19991 | -6/Lower Caves | Discovered new exit (range 7) 20032 | -6/Lower Caves | Entered Data Miner 20033 | -6/Data Miner | Discovered new exit (range 6) 20058 | -6/Data Miner | Met Data Miner 20101 | -6/Data Miner | Learned location of Section 7 (-2) 20101 | -6/Data Miner | Acquired the access code to Warlord's prototype stash 20112 | -6/Data Miner | Received God Mode back door access code from Data Miner 20197 | -6/Data Miner | Interfaced with the Data Conduit 20197 | -6/Data Miner | Identified Exp. Hacking Suite 20212 | -6/Data Miner | Core integrity fell below 50% 20248 | -6/Data Miner | Lost 5 parts (3u2w) 20293 | -6/Data Miner | Entered Proximity Caves 20894 | -5/Proximity Caves | Discovered exit to Factory (range 13) 20967 | -5/Proximity Caves | Build established: Scavenger-Mutant 20971 | -5/Proximity Caves | Entered Factory 20971 | -5/Factory | Evolved 2 slots: Weapon x2 20973 | -5/Factory | Loaded intel: 242 machine locations 21319 | -5/Factory | Build established: Scavenger-Gunner 21322 | -5/Factory | Fabricated Enh. Gauss Cannon (x2) 21480 | -5/Factory | Sucked down chute 21480 | -5/Factory | Entered Waste 21493 | -5/Waste | Spotted C-40 Crusher 21493 | -5/Waste | Spotted C-40 Crusher 21495 | -5/Waste | EMP discharged 21498 | -5/Waste | Crushed by Compactor (1 part destroyed, 2 dropped) 21504 | -5/Waste | Crushed by Compactor (1 part destroyed, 1 dropped) 21506 | -5/Waste | Destroyed C-40 Crusher 21511 | -5/Waste | Destroyed C-40 Crusher 21535 | -5/Waste | Lost 3 parts (2n1w) 21586 | -5/Waste | Spotted C-40 Crusher 21586 | -5/Waste | Spotted C-40 Crusher 21586 | -5/Waste | Spotted C-40 Crusher 21591 | -5/Waste | Crushed by Compactor (1 part destroyed, 1 dropped) 21595 | -5/Waste | EMP discharged 21602 | -5/Waste | Destroyed C-40 Crusher 21606 | -5/Waste | Crushed by Compactor (1 part destroyed) 21606 | -5/Waste | Destroyed C-40 Crusher 21610 | -5/Waste | Destroyed C-40 Crusher 21639 | -5/Waste | Found Damper Plating 21641 | -5/Waste | Spotted C-40 Crusher 21683 | -5/Waste | Discovered new exit (range 10) 21695 | -5/Waste | EMP discharged 21697 | -5/Waste | Entered Factory 21698 | -5/Factory | Loaded intel: 217 machine locations 21900 | -5/Factory | Discovered new exit (range 16) 22541 | -5/Factory | Garrison activated, responded to threat 22615 | -5/Factory | Destroyed 7 combat bots 22919 | -5/Factory | Destroyed 8 combat bots 23009 | -5/Factory | Found Tesla Bomb Launcher 23158 | -5/Factory | Destroyed 13 combat bots 23163 | -5/Factory | System corruption reached 10% 23165 | -5/Factory | Lost 3 parts (2n1w) 23238 | -5/Factory | Identified exit to Upper Caves 23372 | -5/Factory | Discovered new exit (range 16) 23412 | -5/Factory | Cargo convoy interrupted 23447 | -5/Factory | Found Beam Splitter 23471 | -5/Factory | Found Exp. System Shield 23497 | -5/Factory | First assault squad dispatched 23626 | -5/Factory | Entered Upper Caves 23631 | -5/Upper Caves | Identified exit to Upper Caves 23720 | -5/Upper Caves | Encountered a Warlord checkpoint 23744 | -5/Upper Caves | Build established: Golem 23769 | -5/Upper Caves | Spotted B-75 Beast 23799 | -5/Upper Caves | Destroyed B-75 Beast 23938 | -5/Upper Caves | Entered another Upper Caves area 24213 | -5/Upper Caves | Learned Factory trap positions 24323 | -5/Upper Caves | Encountered a Warlord checkpoint 24413 | -5/Upper Caves | Discovered new exit (range 16) 24417 | -5/Upper Caves | Spotted RE-43V(f) 24419 | -5/Upper Caves | Encountered a Master Thief 24419 | -5/Upper Caves | Destroyed RE-43V(f) 24419 | -5/Upper Caves | Spotted TK-DFX(f) 24419 | -5/Upper Caves | Spotted QI-TTV(f) 24420 | -5/Upper Caves | Encountered a Master Thief 24420 | -5/Upper Caves | Encountered a Master Thief 24426 | -5/Upper Caves | Destroyed QI-TTV(f) 24430 | -5/Upper Caves | Beam Splitter stolen by Master Thief 24624 | -5/Upper Caves | Entered Zhirov 24624 | -5/Zhirov | Discovered new exit (range 3) 24649 | -5/Zhirov | Met Zhirov 24686 | -5/Zhirov | Found Alien Artifact 24686 | -5/Zhirov | Identified Integrated Reactor 24686 | -5/Zhirov | Installed Integrated Reactor, increased core energy generation (+10) 24702 | -5/Zhirov | Found Alien Artifact 24782 | -5/Zhirov | Zhirov requested help retrieving the SGEMP Prototype 24881 | -5/Zhirov | Attacked by Zhirov 24962 | -5/Zhirov | Core integrity fell below 50% 24975 | -5/Zhirov | Destroyed Perun 24986 | -5/Zhirov | Destroyed Svarog 25019 | -5/Zhirov | Found Adv. Powered Armor 25434 | -5/Zhirov | Zhirov detonated his lab 25434 | -5/Zhirov | Cloak Generator disabled 25467 | -5/Zhirov | Entered Proximity Caves 25751 | -4/Proximity Caves | Build established: Scavenger-Tank 25848 | -4/Proximity Caves | Attracted the attention of an 0b10 checkpoint 26065 | -4/Proximity Caves | Discovered new exit (range 14) 26471 | -4/Proximity Caves | Entered Factory 26471 | -4/Factory | Evolved 2 slots: Power x1, Utility x1 26472 | -4/Factory | Loaded intel: 103 trap records 26473 | -4/Factory | Loaded intel: 296 machine locations 26968 | -4/Factory | Build established: Golem 26979 | -4/Factory | Garrison activated, responded to threat 26995 | -4/Factory | Lost 5 parts (1n3u1w) 27037 | -4/Factory | Destroyed 10 combat bots 27269 | -4/Factory | Discovered new exit (range 15) 27551 | -4/Factory | System corruption reached 10% 27573 | -4/Factory | Destroyed 8 combat bots 27581 | -4/Factory | Lost 3 parts (3w) 27755 | -4/Factory | Identified exit to Upper Caves 27755 | -4/Factory | Identified exit to Extension 27867 | -4/Factory | Spotted B-86 Titan 27946 | -4/Factory | Cargo convoy interrupted 27947 | -4/Factory | Build established: Scavenger-Golem 27965 | -4/Factory | Befriended a Behemoth using the annoying Tinkerer's hack 27971 | -4/Factory | First assault squad dispatched 27999 | -4/Factory | Lost 14 parts (1p4n4u5w) 28055 | -4/Factory | Found Exp. Shock Absorption System 28099 | -4/Factory | Entered Upper Caves 28165 | -4/Upper Caves | Core integrity fell below 50% 28293 | -4/Upper Caves | Build established: Scavenger-Gunner 28420 | -4/Upper Caves | Spotted B-86 Titan 28437 | -4/Upper Caves | Destroyed B-86 Titan 28461 | -4/Upper Caves | Lost 3 parts (1p1n1w) 28703 | -4/Upper Caves | Discovered new exit (range 8) 28718 | -4/Upper Caves | Entered another Upper Caves area 28723 | -4/Upper Caves | Encountered a Warlord checkpoint 28806 | -4/Upper Caves | Learned 8 Research zone layouts 28864 | -4/Upper Caves | Spotted B-86 Titan 29326 | -4/Upper Caves | Learned location of 1 exit from Research 29431 | -4/Upper Caves | Discovered new exit (range 9) 29453 | -4/Upper Caves | Entered Warlord 29524 | -4/Warlord | System corruption cleaned by Quarantine Array 29913 | -4/Warlord | Learned Factory terminal intel 29913 | -4/Warlord | Learned Factory scanalyzer intel 29913 | -4/Warlord | Learned Armory scanalyzer intel 29915 | -4/Warlord | Learned 4 Command zone layouts 29916 | -4/Warlord | Learned Armory trap positions 29916 | -4/Warlord | Learned Testing trap positions 30147 | -4/Warlord | Met Warlord 30166 | -4/Warlord | Opened Warlord's prototype stash 30172 | -4/Warlord | Warlord's base attacked by MAIN.C 30189 | -4/Warlord | Found Prototype Hackware 30197 | -4/Warlord | Found System Purifier 30205 | -4/Warlord | Found Vortex Chain Reactor 30211 | -4/Warlord | Found Exp. Phase Shifter 30403 | -4/Warlord | Found Prototype Energy Cannon 30406 | -4/Warlord | Found Prototype Energy Cannon 30411 | -4/Warlord | Found Prototype Energy Gun 30411 | -4/Warlord | Identified Vortex Rifle 30470 | -4/Warlord | Build established: Gunner 30504 | -4/Warlord | Spotted B-90 Cyclops 30522 | -4/Warlord | Warlord forces counterattacked 30536 | -4/Warlord | Found Prototype Ballistic Cannon 30536 | -4/Warlord | Identified Hvy. Autocannon 30592 | -4/Warlord | Spotted Striker 30627 | -4/Warlord | Destroyed 8 combat bots 30847 | -4/Warlord | Warlord base infiltrated, sounded retreat 30848 | -4/Warlord | Enhanced Grunt warped into view 30848 | -4/Warlord | Enhanced Grunt warped into view 30848 | -4/Warlord | Enhanced Grunt warped into view 30848 | -4/Warlord | Enhanced Demolisher warped into view 30848 | -4/Warlord | Enhanced Demolisher warped into view 30848 | -4/Warlord | Enhanced Demolisher warped into view 30858 | -4/Warlord | Build established: Mutant 30972 | -4/Warlord | Spotted B-90 Cyclops 30975 | -4/Warlord | Spotted B-86 Titan 30986 | -4/Warlord | Destroyed B-90 Cyclops 31022 | -4/Warlord | Spotted Executioner 31036 | -4/Warlord | Spotted Executioner 31054 | -4/Warlord | Found Adv. Kinecellerator 31057 | -4/Warlord | Spotted Executioner 31071 | -4/Warlord | Found Exp. Core Analyzer 31100 | -4/Warlord | Spotted Striker 31130 | -4/Warlord | Spotted Striker 31142 | -4/Warlord | Discovered new exit (range 12) 31160 | -4/Warlord | Entered Proximity Caves 31412 | -3/Proximity Caves | Build established: Scavenger-Gunner 31957 | -3/Proximity Caves | Discovered new exit (range 12) 31977 | -3/Proximity Caves | Entered Research 31977 | -3/Research | Evolved 2 slots: Propulsion x2 31978 | -3/Research | Identified exit to Research 31980 | -3/Research | Loaded intel: 145 machine locations 32106 | -3/Research | Spotted B-86 Titan 32322 | -3/Research | Spotted B-86 Titan 32384 | -3/Research | Discovered new exit (range 20) 32384 | -3/Research | Spotted B-90 Cyclops 32416 | -3/Research | Identified Vortex Cannon (x2) 32436 | -3/Research | Destroyed B-90 Cyclops 32452 | -3/Research | Lost 5 parts (1p1u3w) 32592 | -3/Research | Destroyed 7 combat bots 32601 | -3/Research | Lost 9 parts (2p2n3u2w) 32629 | -3/Research | Intercept squad dispatched 32648 | -3/Research | Spotted Tracker 32649 | -3/Research | Spotted Tracker 32654 | -3/Research | Spotted Combat Programmer 32662 | -3/Research | Spotted Combat Programmer 32669 | -3/Research | Destroyed Tracker 32679 | -3/Research | Found Prototype Energy Gun 32679 | -3/Research | Identified Immobilizer 32685 | -3/Research | Core integrity fell below 50% 32692 | -3/Research | System corruption reached 10% 32693 | -3/Research | Destroyed Tracker 32713 | -3/Research | Garrison activated, responded to threat 32720 | -3/Research | Destroyed Combat Programmer 32740 | -3/Research | Destroyed Combat Programmer 32775 | -3/Research | Core integrity fell below 20% 32814 | -3/Research | Lost 21 parts (3p8n4u6w) 32822 | -3/Research | Destroyed 9 combat bots 32883 | -3/Research | Found Exp. Phase Shifter 32890 | -3/Research | Found Exp. Targeting Computer 32901 | -3/Research | Found Prototype Special Weapon 32901 | -3/Research | Identified Exp. Remote Datajack 33125 | -3/Research | Identified System Mapper 33166 | -3/Research | Found Unknown Launcher 33166 | -3/Research | Identified Gamma Bomb Array 33242 | -3/Research | Discovered new exit (range 14) 33303 | -3/Research | Entered Quarantine 33304 | -3/Quarantine | Loaded intel: 72 machine locations 33307 | -3/Quarantine | Spotted Alpha 7 33314 | -3/Quarantine | Found Alien Launcher 33338 | -3/Quarantine | Scanned by Researcher 33351 | -3/Quarantine | Found Alien Impact Weapon 33351 | -3/Quarantine | Identified Core Stripper 33425 | -3/Quarantine | Destroyed by G-67 Veteran with Field Laser Last Messages --------------- 33347_ Extracted schematic archive: Imp. Energy Mantle. 33347_ Extracted schematic archive: Kinetic Spear. 33350_ Dropped Exp. Remote Datajack. 33350_ Dropped XL Autogun Subcomponent. 33351_ Acquired Alien Impact Weapon. 33351_ Identified Core Stripper. 33353_ Acquired 60 matter. 33355_